fUST/lending_fUST_20250929
["ID","MTS","AMOUNT","RATE_DAILY","PERIOD"]
[388313817,1759078259454,-480.0,0.0003589,9]
[388313818,1759078259463,-480.0,0.0003589,9]
[388313819,1759078259472,-480.0,0.0003589,9]
[388313820,1759078259481,-1149.04,0.0003589,9]
[388313821,1759078259491,-667.69,0.0003589,9]
[388313822,1759078259500,-2299.66,0.0003589,9]
[388313823,1759078259510,-480.0,0.0003589,9]
[388313824,1759078259519,-1106.37,0.0003589,9]
[388313825,1759078259528,-1194.41,0.0003589,9]
[388313826,1759078259537,-868.96,0.0003589,9]
[388313827,1759078259546,-480.0,0.0003589,9]
[388313828,1759078259555,-658.99,0.0003589,9]
[388313829,1759078259564,-480.0,0.0003589,9]
[388313830,1759078259574,-480.0,0.0003589,9]
[388313831,1759078259583,-492.57,0.0003589,9]
[388313832,1759078259593,-968.64,0.0003589,9]
[388313833,1759078259602,-1038.06,0.0003589,9]
[388313834,1759078259611,-855.97,0.0003589,9]
[388313835,1759078259620,-240.4,0.0003589,9]
[388313836,1759078259629,-539.38,0.0003589,9]
[388313837,1759078259638,-480.0,0.0003589,9]
[388313838,1759078259647,-480.0,0.0003589,9]
[388313839,1759078259656,-480.0,0.0003589,9]
[388313840,1759078259665,-1081.31,0.0003589,9]
[388313841,1759078259674,-480.0,0.0003589,9]
[388313842,1759078259683,-480.0,0.0003589,9]
[388313843,1759078259692,-480.0,0.0003589,9]
[388313844,1759078259701,-480.0,0.0003589,9]
[388313845,1759078259710,-1065.4,0.0003589,9]
[388313846,1759078259719,-566.36062208,0.0003589,9]
[388313847,1759078259728,-480.0,0.0003589,9]
[388313848,1759078259737,-741.69,0.0003589,9]
[388313849,1759078259746,-480.0,0.0003589,9]
[388313850,1759078259755,-881.9,0.0003589,9]
[388313851,1759078259763,-480.78010155,0.0003589,9]
[388313852,1759078259772,-480.0,0.0003589,9]
[388313853,1759078259781,-480.0,0.0003589,9]
[388313854,1759078259790,-925.44,0.0003589,9]
[388313855,1759078259799,-480.0,0.0003589,7]
[388313856,1759078259807,-480.0,0.0003589,9]
[388313857,1759078259817,-1094.08,0.0003589,9]
[388313858,1759078259826,-1159.23,0.0003589,9]
[388313859,1759078259835,-1114.18898317,0.0003589,9]
[388313860,1759078261594,5000.0,0.00025205,2]
[388313861,1759078262013,0.02,0.000249,2]
[388313862,1759078262037,299.98,0.000249,2]
[388313863,1759078264309,300.0,0.000249,2]
[388313864,1759078277077,300.0,0.000249,2]
[388313866,1759078288330,300.0,0.000249,2]
[388313867,1759078296143,300.0,0.000252,2]
[388313868,1759078300912,300.0,0.000249,2]
[388313870,1759078366545,1087.72670424,0.00025205,2]
[388313871,1759078390021,803.8667036,0.00025205,2]
[388313873,1759078472495,5000.0,0.00025205,2]
[388313874,1759078495484,1308.43659216,0.00025205,2]
[388313875,1759078495507,3691.56340784,0.00025205,2]
[388313876,1759078555392,417.15472785,0.00024245,2]
[388313877,1759078555822,417.15472785,0.00025,30]
[388313878,1759078556216,417.15472785,0.00026,60]
[388313879,1759078575530,493.15081375,0.00024245,2]
[388313889,1759078823279,160.0,0.00024245,2]
[388313890,1759078824574,-1200.0,0.00024952,2]
[388313891,1759078824603,-2600.01,0.00024953,2]
[388313892,1759078834199,-2399.99,0.00024953,2]
[388313893,1759078834228,-500.0,0.00024953,2]
[388313894,1759078834255,-500.0,0.00024953,2]
[388313895,1759078834282,-500.0,0.00024953,2]
[388313896,1759078834309,-411.46943892,0.00024953,2]
[388313897,1759078834336,-400.0,0.00027155,2]
[388313898,1759078834363,-199.0,0.00030684,14]
[388313899,1759078844224,-200.0,0.00031,7]
[388313900,1759078844254,-168.0,0.00031177,7]
[388313901,1759078844282,-199.0,0.00031232,15]
[388313902,1759078844311,-519.083734,0.00031515,2]
[388313903,1759078844340,-168.0,0.00031541,2]
[388313904,1759078844366,-187.822338,0.00031545,60]
[388313905,1759078844392,-300.0,0.00031778,3]
[388313906,1759078844419,-400.0,0.00031778,2]
[388313907,1759078844446,-300.0,0.00031778,3]
[388313908,1759078844477,-480.0,0.00031779,3]
[388313909,1759078844503,-199.0,0.0003178,16]
[388313910,1759078844532,-168.0,0.00031834,7]
[388313911,1759078844558,-425.72,0.00031911,2]
[388313912,1759078844587,-168.0,0.00031919,2]
[388313913,1759078844615,-168.0,0.00032004,2]
[388313914,1759078844641,-425.72,0.00032011,2]
[388313915,1759078844864,-200.0,0.00032061,2]
[388313916,1759078844894,-168.0,0.00032113,2]
[388313917,1759078844924,-143.317856,0.00032159,2]
[388313918,1759078864246,-5000.0,0.00024953,2]
[388313922,1759078932897,160.0,0.0002,7]
[388313925,1759079132149,-1110.94057177,0.00027638,2]
[388313930,1759079174923,-3889.05942823,0.00027638,2]
[388313932,1759079184800,-2484.45427666,0.00027917,2]
[388313933,1759079184826,-300.0,0.00029999,2]
[388313934,1759079184853,-160.0,0.0003,10]
[388313935,1759079184881,-305.519656,0.00030907,30]
[388313936,1759079184909,-500.0,0.00031062,7]
[388313937,1759079184936,-369.37262421,0.00031248,2]
[388313938,1759079184966,-24.682144,0.00032159,2]
[388313939,1759079194778,-5000.0,0.00024953,2]
[388313940,1759079214846,-1166.0596426,0.0002939,2]
[388313941,1759079214877,-2893.30717254,0.00032221,2]
[388313942,1759079214908,-168.0,0.0003226,7]
[388313943,1759079214935,-199.0,0.00032328,17]
[388313944,1759079214963,-420.0,0.00032332,2]
[388313945,1759079214991,-139.27636972,0.00032391,2]
[388313946,1759079225093,-28.72363028,0.00032391,2]
[388313947,1759079225112,-160.0,0.00032427,2]
[388313948,1759079225134,-400.0,0.00032427,2]
[388313949,1759079225153,-417.15472785,0.00032428,2]
[388313950,1759079225172,-160.0,0.00032428,2]
[388313951,1759079225191,-75.06477378,0.00032428,2]
[388313952,1759079228087,-158.54188682,0.00032428,2]
[388313953,1759079228112,-81.39308064,0.00032428,2]
[388313965,1759079375519,360.086632,0.00028289,2]
[388313977,1759079431883,-500.0,0.00031587,7]
[388313980,1759079431892,-259.541867,0.00031964,2]
[388313981,1759079431902,-360.086632,0.00032207,2]
[388313983,1759079431911,-108.10475523,0.000324,2]
[388313985,1759079431921,-191.89524477,0.000324,2]
[388313986,1759079431930,-160.0,0.0003253,2]
[388313988,1759079431940,-86.55662375,0.0003253,2]
[388314003,1759079432027,-137.88257021,0.0003253,2]
[388314005,1759079432049,-275.56080604,0.0003253,2]
[388314007,1759079432058,-183.79015106,0.0003253,2]
[388314100,1759079437887,-5.56564098,0.0003253,2]
[388314101,1759079437896,-160.0,0.0003253,2]
[388314102,1759079437905,-160.0,0.0003253,2]
[388314103,1759079437914,-233.82138094,0.0003253,2]
[388314104,1759079437923,-160.0,0.00032841,2]
[388314105,1759079437933,-160.0,0.00032841,2]
[388314106,1759079437944,-231.53117202,0.00032841,2]
[388314107,1759079437957,-980.4636513,0.00032841,2]
[388314108,1759079437966,-500.0,0.00032876,120]
[388314109,1759079437975,-840.49231431,0.00032877,2]
[388314110,1759079437985,-265.12036769,0.00032877,2]
[388314111,1759079437994,-8.70525394,0.00032921,7]
[388314112,1759079438006,-159.29474606,0.00032921,7]
[388314113,1759079438015,-168.0,0.00032959,2]
[388314114,1759079438024,-81.09164884,0.00033013,120]
[388314115,1759079438035,-418.90835116,0.00033013,120]
[388314116,1759079438044,-400.0,0.00033099,2]
[388314117,1759079438053,-168.0,0.000331,2]
[388314118,1759079438063,-165.66239392,0.000332,117]
[388314119,1759079438072,-39.50848449,0.00033298,2]
[388314120,1759079438083,-161.01675514,0.00033298,2]
[388314121,1759079438092,-589.69283449,0.00033298,7]
[388314122,1759079438101,-299.3519021,0.00033298,7]
[388314123,1759079438123,-200.6480979,0.00033298,7]
[388314124,1759079438134,-500.0,0.00033298,7]
[388314125,1759079438143,-500.0,0.00033298,7]
[388314126,1759079438152,-500.0,0.00033298,7]
[388314127,1759079438162,-500.0,0.00033298,7]
[388314128,1759079438171,-500.0,0.00033298,7]
[388314129,1759079438180,-242.75559958,0.00033298,7]
[388314130,1759079438190,-216.33973254,0.00033298,7]
[388314131,1759079438199,-500.0,0.00033298,7]
[388314132,1759079438208,-500.0,0.00033298,7]
[388314133,1759079438217,-14384.14764929,0.00033299,2]
[388314134,1759079438226,-1166.0596426,0.00033301,2]
[388314135,1759079438235,-252.02515466,0.00033304,2]
[388314136,1759079438244,-168.0,0.00033319,2]
[388314137,1759079438252,-199.0,0.00033496,14]
[388314138,1759079438261,-153.0,0.00033498,2]
[388314139,1759079438270,-153.0,0.00033498,2]
[388314140,1759079438279,-153.0,0.00033498,2]
[388314141,1759079438288,-153.0,0.00033498,2]
[388314142,1759079438297,-12873.73927408,0.000335,10]
[388314143,1759079438306,-3000.0,0.000335,16]
[388314144,1759079438316,-153.0,0.00033504,2]
[388314145,1759079438325,-153.0,0.00033504,2]
[388314146,1759079438334,-153.0,0.00033509,2]
[388314147,1759079438343,-153.0,0.00033509,2]
[388314148,1759079438352,-153.0,0.00033509,2]
[388314149,1759079438361,-153.0,0.00033509,2]
[388314150,1759079438370,-153.0,0.00033509,2]
[388314151,1759079438379,-153.0,0.00033509,2]
[388314152,1759079438387,-153.0,0.00033509,2]
[388314153,1759079438396,-3000.0,0.0003351,16]
[388314154,1759079438406,-5330.136749,0.0003352,16]
[388314155,1759079438415,-168.0,0.00033618,7]
[388314156,1759079438423,-324.25091634,0.00033922,2]
[388314157,1759079438433,-597.9,0.00033929,10]
[388314158,1759079438442,-498.25,0.00033929,10]
[388314159,1759079438452,-415.2,0.00033929,10]
[388314160,1759079438461,-288.09255718,0.00033938,7]
[388314161,1759079438470,-176.64519816,0.00033938,7]
[388314162,1759079438480,-650.67737263,0.00033938,7]
[388314163,1759079438489,-650.67737263,0.00033938,7]
[388314164,1759079438498,-650.67737263,0.00033938,7]
[388314165,1759079438507,-650.67737263,0.00033938,7]
[388314166,1759079438515,-650.67737263,0.00033938,7]
[388314167,1759079438524,-650.67737263,0.00033938,7]
[388314168,1759079438533,-650.67737263,0.00033938,7]
[388314169,1759079438543,-650.67737263,0.00033938,7]
[388314170,1759079438553,-650.67737263,0.00033938,7]
[388314171,1759079438562,-650.67737263,0.00033938,7]
[388314172,1759079438572,-650.67737263,0.00033938,7]
[388314173,1759079438581,-650.67737263,0.00033938,7]
[388314174,1759079438590,-650.67737263,0.00033938,7]
[388314175,1759079438600,-650.67737263,0.00033938,7]
[388314176,1759079438609,-650.67737263,0.00033938,7]
[388314177,1759079438619,-650.67737263,0.00033938,7]
[388314178,1759079438628,-3899.54985702,0.00033939,60]
[388314179,1759079438638,-150.0,0.00033939,2]
[388314180,1759079438647,-152.926189,0.00033939,10]
[388314181,1759079438656,-116157.48229886,0.00033939,15]
[388314182,1759079438667,-8255.05452434,0.00033939,15]
[388314183,1759079438678,-516.76249321,0.00033939,15]
[388314184,1759079438689,-1888.27057153,0.00033939,15]
[388314208,1759079440642,-26.65944083,0.00033939,15]
[388314263,1759079443126,-123.43784131,0.00033939,15]
[388314264,1759079443137,-555.21288921,0.00033939,15]
[388314265,1759079443149,-50476.50994071,0.00033939,15]
[388314266,1759079443158,-979.0,0.00034022,2]
[388314267,1759079443167,-635.0,0.00034022,2]
[388314268,1759079443176,-2161.0,0.00034022,2]
[388314269,1759079443185,-199.0,0.00034044,15]
[388314270,1759079443194,-168.0,0.00034108,2]
[388314271,1759079443203,-150.0,0.00034129,2]
[388314272,1759079443212,-150.0,0.00034129,2]
[388314273,1759079443221,-324.2509163,0.00034321,2]
[388314274,1759079443230,-168.0,0.00034359,2]
[388314275,1759079443239,-168.0,0.00034366,2]
[388314276,1759079443249,-160.0,0.00034531,3]
[388314277,1759079443258,-199.0,0.00034592,16]
[388314278,1759079443267,-324.2509163,0.00034719,2]
[388314279,1759079443277,-493.25163655,0.00034813,2]
[388314280,1759079443286,-3143.0,0.00034927,2]
[388314281,1759079443295,-201.93521594,0.00035,2]
[388314282,1759079443305,-324.2509163,0.00035118,2]
[388314284,1759079443314,-199.0,0.0003514,17]
[388314285,1759079443323,-160.0,0.00035289,4]
[388314286,1759079443332,-600.0,0.00035297,2]
[388314287,1759079443340,-264.0,0.0003541,2]
[388314288,1759079443349,-21478.251057,0.00035496,3]
[388314289,1759079443358,-83386.65853333,0.00035506,3]
[388314290,1759079443369,-9226.04584462,0.00035506,3]
[388314299,1759079443705,160.0,0.00025205,2]
[388314309,1759079445938,-500.0,0.00033938,7]
[388314310,1759079445947,-419.765,0.00033938,7]
[388314311,1759079445992,-80.235,0.00033938,7]
[388314312,1759079446002,-1503.37349669,0.0003499,2]
[388314313,1759079446011,-18423.71860209,0.00035506,3]
[388314314,1759079446022,-586.36369892,0.00035506,3]
[388314316,1759079446725,-38724.97072004,0.00035506,3]
[388314317,1759079446735,-35177.78003727,0.00035516,2]
[388314318,1759079446758,-295.13886484,0.00033938,7]
[388314319,1759079462533,244.78833829,0.00025205,2]
[388314322,1759079737844,10000.01,0.0002487,7]
[388314323,1759079738073,10000.01,0.0002487,7]
[388314324,1759079738094,10000.01,0.0002487,7]
[388314325,1759079738116,6920.97,0.0002487,7]
[388314328,1759079944769,194.04383793,0.00025205,2]
[388314341,1759080115267,155.0,0.00028767,120]
[388314342,1759080124558,459.88523132,0.00025205,2]
[388314349,1759080244080,509.0,0.00025205,2]
[388314350,1759080277643,1002.0,0.00025,7]
[388314356,1759080353150,277.84618628,0.00025,2]
[388314366,1759080428130,-164.97898445,0.00029643,2]
[388314367,1759080428151,-400.0,0.00031998,2]
[388314368,1759080428171,-500.0,0.00031999,2]
[388314369,1759080428191,-500.0,0.00031999,2]
[388314370,1759080428216,-437.32974136,0.00031999,2]
[388314371,1759080428239,-298.12738476,0.00031999,2]
[388314375,1759080447091,-268.75664884,0.00031998,3]
[388314376,1759080447120,-1293.63155328,0.00031998,3]
[388314380,1759080468863,636.26474447,0.00018,2]
[388314381,1759080468889,3878.43901292,0.00018,2]
[388314388,1759080511915,453.90789261,0.00025,2]
[388314390,1759080513320,2064.54829843,0.00025,2]
[388314391,1759080513807,2643.34249037,0.00025,2]
[388314392,1759080513980,150.91236881,0.0002,7]
[388314393,1759080514105,366.49426001,0.0002,2]
[388314395,1759080514510,442.36567685,0.00015,2]
[388314396,1759080514531,10000.01,0.00015,2]
[388314397,1759080514552,10000.01,0.00015,2]
[388314398,1759080514575,6014.22502166,0.00015,2]
[388314399,1759080514937,3985.78497834,0.00025,2]
[388314400,1759080514959,10000.01,0.00025,2]
[388314401,1759080514981,2987.07566565,0.00025,2]
[388314403,1759080520253,301.999999,0.00021,2]
[388314404,1759080520383,664.04951483,0.000245,2]
[388314405,1759080522229,1017.79128391,0.000225,2]
[388314407,1759080524549,5029.09353661,0.00019063,7]
[388314408,1759080524572,10000.01,0.00019063,7]
[388314409,1759080524594,10000.01,0.00019063,7]
[388314410,1759080524615,4098.39255649,0.00019063,7]
[388314412,1759080545069,-783.81633187,0.000258,2]
[388314413,1759080545090,-305.8399196,0.0002895,2]
[388314414,1759080545374,-151.0,0.0002905,2]
[388314494,1759080632755,-168.0,0.00031905,2]
[388314497,1759080632765,-346.0,0.00031988,10]
[388314499,1759080632774,-288.34,0.00031988,10]
[388314501,1759080632784,-240.28,0.00031988,10]
[388314503,1759080632793,-300.0,0.00031997,3]
[388314504,1759080632802,-400.0,0.00031997,2]
[388314506,1759080632811,-300.0,0.00031997,3]
[388314508,1759080632820,-300.0,0.00031997,3]
[388314510,1759080632829,-1200.0,0.00031997,3]
[388314512,1759080632838,-616.33088602,0.00031997,2]
[388314514,1759080632847,-295.68372339,0.00031997,2]
[388314516,1759080632856,-616.33088602,0.00031997,2]
[388314518,1759080632865,-616.33088602,0.00031997,2]
[388314520,1759080632875,-203.5772266,0.00031997,2]
[388314522,1759080632883,-616.33088602,0.00031997,2]
[388314524,1759080632893,-616.33088602,0.00031997,2]
[388314526,1759080632903,-616.33088602,0.00031997,2]
[388314528,1759080632913,-616.33088602,0.00031997,2]
[388314530,1759080632922,-616.33088602,0.00031997,2]
[388314532,1759080632931,-616.33088602,0.00031997,2]
[388314534,1759080632940,-616.33088602,0.00031997,2]
[388314536,1759080632949,-616.33088602,0.00031997,2]
[388314538,1759080632959,-37.61179788,0.00031998,3]
[388314540,1759080632968,-500.0,0.00031998,2]
[388314541,1759080632977,-50000.0,0.00031998,2]
[388314542,1759080632986,-172.2201677,0.00032,120]
[388314543,1759080632994,-276.18914569,0.00032,120]
[388314545,1759080633003,-27731.6646801,0.00032,13]
[388314547,1759080633013,-169.68552687,0.00032,120]
[388314549,1759080633022,-169.68552687,0.000323,120]
[388314550,1759080633031,-273.9358989,0.00032444,2]
[388314551,1759080633039,-168.0,0.00032557,2]
[388314552,1759080633049,-477.84,0.0003259,3]
[388314553,1759080633058,-238.92,0.0003259,3]
[388314554,1759080633067,-716.8,0.0003259,3]
[388314555,1759080633076,-21500.675381,0.0003259,2]
[388314556,1759080633085,-169.68552687,0.000326,120]
[388314557,1759080633094,-1085.50239,0.00032877,2]
[388314559,1759080633103,-168.0,0.00032927,2]
[388314561,1759080633113,-169.68552687,0.00033,120]
[388314562,1759080633122,-28034.49635493,0.00033,2]
[388314564,1759080633132,-247.37417167,0.00033,60]
[388314566,1759080633141,-169.68552687,0.000333,120]
[388314567,1759080633150,-1164.83793406,0.000335,2]
[388314568,1759080633159,-6810.31907845,0.000336,2]
[388314570,1759080633168,-285.133222,0.00033648,2]
[388314571,1759080633177,-168.0,0.00033649,2]
[388314573,1759080633186,-454.40913181,0.00033775,32]
[388314574,1759080633196,-417.82014004,0.00033927,2]
[388314575,1759080633206,-275.22462687,0.00033927,2]
[388314576,1759080633215,-314.54243071,0.00033927,2]
[388314577,1759080633224,-5000.0,0.00033943,60]
[388314578,1759080633233,-5000.0,0.00033943,60]
[388314580,1759080633242,-150.0,0.00033944,2]
[388314582,1759080633251,-152.926189,0.00033944,10]
[388314583,1759080633260,-263.03422888,0.00033944,30]
[388314584,1759080633270,-54486.65347604,0.00033944,15]
[388314585,1759080633282,-56271.26999985,0.00033944,15]
[388314586,1759080633292,-3145.24,0.00033944,15]
[388314587,1759080633304,-2254.32202222,0.00033944,15]
[388314588,1759080633317,-461.52927709,0.00033944,2]
[388314589,1759080633326,-10233.86008371,0.00033944,2]
[388314590,1759080633335,-300.0,0.00033944,2]
[388314591,1759080633343,-1290.39334509,0.00033944,2]
[388314592,1759080633354,-2593.29177088,0.00033944,2]
[388314593,1759080633363,-810.16090208,0.00033944,2]
[388314594,1759080633372,-806.19976818,0.00033944,32]
[388314595,1759080633381,-258.34718784,0.00033944,2]
[388314596,1759080633390,-297.04555418,0.00033944,2]
[388314597,1759080633400,-327.193554,0.00033944,2]
[388314598,1759080633410,-292.01243797,0.00033944,2]
[388314599,1759080633419,-954.54353309,0.00033944,7]
[388314600,1759080633428,-51766.51963656,0.00033944,2]
[388314601,1759080633437,-637.59698372,0.00033944,2]
[388314602,1759080633446,-1362.60101409,0.00033944,2]
[388314603,1759080633455,-156.70731057,0.00033944,2]
[388314604,1759080633464,-13272.60109887,0.00033944,2]
[388314605,1759080635927,1336.47946821,0.00025205,2]
[388314606,1759080635947,377.51373081,0.00025205,2]
[388314607,1759080637954,-221.74667835,0.00031997,2]
[388314608,1759080637965,-298.51234555,0.00031997,2]
[388314609,1759080637974,-500.0,0.00031997,2]
[388314610,1759080637983,-500.0,0.00031997,2]
[388314611,1759080637992,-500.0,0.00031997,2]
[388314612,1759080638001,-401.11632154,0.00031997,2]
[388314613,1759080638010,-500.0,0.00031997,2]
[388314614,1759080638020,-64.62787019,0.00031997,2]
[388314615,1759080638031,-435.37212981,0.00031997,2]
[388314616,1759080638041,-378.48726561,0.00031997,2]
[388314617,1759080638053,-271.51273439,0.00031997,2]
[388314618,1759080638063,-500.0,0.00031997,2]
[388314619,1759080638073,-500.0,0.00031997,2]
[388314620,1759080638082,-500.0,0.00031997,2]
[388314621,1759080638091,-500.0,0.00031997,2]
[388314622,1759080638100,-500.0,0.00031997,2]
[388314623,1759080638110,-500.0,0.00031997,2]
[388314624,1759080638119,-500.0,0.00031997,2]
[388314625,1759080638128,-500.0,0.00031997,2]
[388314627,1759080638137,-500.0,0.00031997,2]
[388314629,1759080638146,-500.0,0.00031997,2]
[388314631,1759080638156,-628.88350394,0.00031997,2]
[388314633,1759080638165,-599.70799524,0.00031997,2]
[388314634,1759080638175,-500.0,0.00031997,2]
[388314635,1759080638184,-500.0,0.00031997,2]
[388314636,1759080638193,-500.0,0.00031997,2]
[388314637,1759080638202,-500.0,0.00031997,2]
[388314638,1759080638211,-500.0,0.00031997,2]
[388314639,1759080638220,-500.0,0.00031997,2]
[388314640,1759080638229,-320.61335418,0.00031997,2]
[388314641,1759080638238,-500.0,0.00031997,2]
[388314642,1759080638247,-500.0,0.00031997,2]
[388314643,1759080638256,-500.0,0.00031997,2]
[388314644,1759080638265,-500.0,0.00031997,2]
[388314645,1759080638274,-500.0,0.00031997,2]
[388314646,1759080638283,-500.0,0.00031997,2]
[388314647,1759080638293,-500.0,0.00031997,2]
[388314648,1759080638302,-500.0,0.00031997,2]
[388314649,1759080638313,-500.0,0.00031997,2]
[388314650,1759080638322,-500.0,0.00031997,2]
[388314651,1759080638331,-500.0,0.00031997,2]
[388314652,1759080638340,-500.0,0.00031997,2]
[388314653,1759080638349,-500.0,0.00031997,2]
[388314654,1759080638358,-500.0,0.00031997,2]
[388314655,1759080638367,-500.0,0.00031997,2]
[388314656,1759080638376,-500.0,0.00031997,2]
[388314657,1759080638384,-500.0,0.00031997,2]
[388314658,1759080638394,-500.0,0.00031997,2]
[388314659,1759080638403,-500.0,0.00031997,2]
[388314660,1759080638412,-500.0,0.00031997,2]
[388314661,1759080638421,-500.0,0.00031997,2]
[388314662,1759080638430,-500.0,0.00031997,2]
[388314663,1759080638439,-603.8720087,0.00031997,2]
[388314664,1759080638448,-500.0,0.00031997,2]
[388314665,1759080638457,-500.0,0.00031997,2]
[388314666,1759080638466,-500.0,0.00031997,2]
[388314667,1759080638475,-500.0,0.00031997,2]
[388314668,1759080638483,-500.0,0.00031997,2]
[388314669,1759080638492,-500.0,0.00031997,2]
[388314670,1759080638501,-500.0,0.00031997,2]
[388314671,1759080638511,-500.0,0.00031997,2]
[388314672,1759080638520,-616.33088602,0.00031997,2]
[388314673,1759080638529,-616.33088602,0.00031997,2]
[388314674,1759080638538,-616.33088602,0.00031997,2]
[388314675,1759080638547,-616.33088602,0.00031997,2]
[388314676,1759080638557,-616.33088602,0.00031997,2]
[388314677,1759080638566,-616.33088602,0.00031997,2]
[388314678,1759080638576,-616.33088602,0.00031997,2]
[388314679,1759080638585,-616.33088602,0.00031997,2]
[388314680,1759080638594,-616.33088602,0.00031997,2]
[388314681,1759080638604,-616.33088602,0.00031997,2]
[388314682,1759080638614,-616.33088602,0.00031997,2]
[388314683,1759080638623,-631.08826811,0.00033944,2]
[388314684,1759080638632,-33103.67017068,0.00033944,2]
[388314685,1759080638641,-3742.33892742,0.00033944,2]
[388314686,1759080638650,-1499.999999,0.00033944,3]
[388314687,1759080638663,-30470.64733089,0.00033944,2]
[388314688,1759080638672,-10690.22794481,0.00033944,2]
[388314689,1759080638681,-2920.0,0.00033944,2]
[388314690,1759080638691,-10223.24867926,0.00033944,2]
[388314691,1759080638701,-11188.10333632,0.00033944,2]
[388314692,1759080638710,-1444.11071423,0.00033944,2]
[388314693,1759080638720,-385.25329815,0.00033944,2]
[388314694,1759080638729,-201.556435,0.00033944,2]
[388314695,1759080638737,-3149.67551156,0.00033944,2]
[388314696,1759080638747,-166.74648767,0.00033944,2]
[388314697,1759080638948,-82704.62919988,0.00033944,2]
[388314698,1759080638968,-6361.78068164,0.00033944,2]
[388314719,1759080640011,-200.23,0.00033934,10]
[388314720,1759080640020,-216.62570799,0.00033944,2]
[388314783,1759080643303,-552.80612067,0.00033944,2]
[388314784,1759080643318,-700.87272024,0.00033944,2]
[388314785,1759080643330,-9779.3187305,0.00033944,2]
[388314786,1759080643339,-150.41797213,0.00033944,2]
[388314787,1759080643349,-258.66928478,0.00033944,2]
[388314788,1759080643358,-2022.70079995,0.00033944,2]
[388314789,1759080643829,397.53915692,0.00025205,2]
[388314812,1759081048567,10000.01,0.00023,2]
[388314813,1759081048591,10000.01,0.00023,2]
[388314814,1759081048619,6640.41229603,0.00023,2]
[388314816,1759081286136,160.0,0.00025205,2]
[388314817,1759081307050,417.15472785,0.00025205,2]
[388314818,1759081310730,480.0,0.00025205,2]
[388314832,1759081560391,240.52989646,0.00025205,2]
[388314833,1759081627097,-232.92323887,0.00029,10]
[388314834,1759081627116,-181.839249,0.00030544,60]
[388314835,1759081627135,-235.0944392,0.00030705,2]
[388314836,1759081627156,-22.24668198,0.00030996,2]
[388314837,1759081684528,1440.2029745,0.00025205,2]
[388314838,1759081747106,-226.81961102,0.00030996,2]
[388314839,1759081747130,-152.7127115,0.0003107,2]
[388314843,1759081807246,250.0,0.00033941,120]
[388314844,1759081807901,250.0,0.00033941,120]
[388314845,1759081821779,500.0,0.00033941,120]
[388314846,1759081822445,500.0,0.00033941,120]
[388314943,1759081832491,-300.0,0.00031986,3]
[388314945,1759081832501,-400.0,0.00031986,2]
[388314947,1759081832510,-300.0,0.00031986,3]
[388314949,1759081832519,-1200.0,0.00031986,3]
[388314951,1759081832528,-422.0,0.00031987,3]
[388314953,1759081832537,-21232.01938401,0.00031987,2]
[388314955,1759081832546,-199.0,0.00031997,14]
[388314957,1759081832556,-160.0,0.00032,120]
[388314959,1759081832565,-161.41816026,0.00032,120]
[388314961,1759081832575,-172.22016769,0.00032,120]
[388314963,1759081832585,-339.37105373,0.00032,120]
[388314965,1759081832594,-66.30622905,0.000323,120]
[388315093,1759081838277,-520.56384895,0.00031986,2]
[388315094,1759081838286,-500.0,0.00031986,2]